bitfinex/quotes_SOLUSD_20240813
["timestamp","ask_amount","ask_price","bid_price","bid_amount"]
[1723539214333,6.8781,145.39,145.36,45.25098]
[1723539217336,26.8776,145.4,145.36,44.25098]
[1723539217535,20.0,145.4,145.37,0.12549]
[1723539217734,20.0,145.4,145.37,0.25098]
[1723539219419,26.8776,145.4,145.37,0.25098]
[1723539221739,20.0,145.4,145.37,0.25098]
[1723539222328,6.8777,145.4,145.37,0.25098]
[1723539223121,20.0,145.44,145.37,7.12958]
[1723539223327,20.0,145.44,145.39,0.12549]
[1723539223521,6.877,145.42,145.39,0.12549]
[1723539223831,6.8771,145.41,145.39,0.12549]
[1723539224025,28.0159,145.45,145.38,45.25098]
[1723539224026,6.8776,145.4,145.38,45.0]
[1723539224242,6.878,145.39,145.38,45.0]
[1723539224446,6.878,145.39,145.35,17.1992]
[1723539224664,6.878,145.39,145.36,45.0]
[1723539226040,6.8777,145.4,145.36,45.0]
[1723539227155,6.8777,145.4,145.36,46.37567717]
[1723539228047,12.74,145.39,145.36,45.0]
[1723539228240,12.74,145.39,145.35,45.12549]
[1723539228849,12.74,145.39,145.35,52.00529]
[1723539229226,6.878,145.4,145.35,52.00529]
[1723539229654,6.878,145.4,145.35,53.3810143]
[1723539230553,6.878,145.4,145.36,1.37572371]
[1723539230743,6.878,145.39,145.35,52.00529]
[1723539231259,6.8777,145.4,145.35,52.00529]
[1723539232426,6.878,145.39,145.35,52.00529]
[1723539233652,12.74,145.41,145.35,52.00529]
[1723539233653,6.8775,145.4,145.35,52.00529]
[1723539234453,19.6172,145.41,145.36,6.8793]
[1723539234669,19.6172,145.41,145.36,8.25502662]
[1723539234964,19.6172,145.41,145.36,8.25502097]
[1723539235147,19.6172,145.41,145.37,51.8789]
[1723539235359,19.6172,145.41,145.37,6.8789]
[1723539235533,12.74,145.41,145.37,6.8789]
[1723539235733,12.74,145.41,145.38,45.0]
[1723539237732,19.6171,145.41,145.38,45.0]
[1723539238143,19.6171,145.41,145.37,45.12549]
[1723539239757,19.6171,145.41,145.37,45.0]
[1723539239968,6.8776,145.4,145.37,45.0]
[1723539240147,6.878,145.39,145.37,45.0]
[1723539240349,6.8777,145.4,145.37,45.0]
[1723539241437,6.8781,145.39,145.37,45.0]
[1723539241649,6.8781,145.39,145.36,45.0]
[1723539241856,12.74,145.41,145.37,0.25098]
[1723539242059,32.4644,145.45,145.37,0.25098]
[1723539242060,19.6162,145.43,145.38,6.8783]
[1723539242274,6.8757,145.44,145.4,0.12549]
[1723539242564,6.8757,145.44,145.4,0.25098]
[1723539242565,20.0,145.43,145.4,0.25098]
[1723539242964,26.8762,145.43,145.39,52.00339]
[1723539243152,26.8762,145.43,145.39,45.0]
[1723539243534,20.0,145.43,145.39,45.0]
[1723539243741,20.0,145.44,145.41,6.8768]
[1723539243957,20.0,145.44,145.42,45.0]
[1723539244144,12.74,145.46,145.42,45.0]
[1723539244145,20.0,145.45,145.42,45.0]
[1723539244953,26.8753,145.45,145.42,45.0]
[1723539245156,39.6153,145.45,145.41,45.0]
[1723539246376,20.0,145.45,145.41,51.8769]
[1723539246866,20.0,145.45,145.41,45.0]
[1723539247036,12.74,145.42,145.35,16.4414]
[1723539247232,12.74,145.4,145.35,16.4414]
[1723539247432,16.6041,145.43,145.35,16.4414]
[1723539247433,12.74,145.38,145.35,16.4414]
[1723539247632,19.6185,145.38,145.34,6.1508]
[1723539247843,12.74,145.4,145.34,6.1508]
[1723539248046,6.8779,145.4,145.35,6.8798]
[1723539248237,12.74,145.39,145.35,6.8798]
[1723539248761,19.6181,145.39,145.34,13.0311]
[1723539249138,19.6181,145.39,145.35,45.25098]
[1723539249748,6.8776,145.4,145.35,52.13078]
[1723539249948,12.74,145.41,145.36,0.25098]
[1723539250148,20.0,145.4,145.36,0.12549]
[1723539250355,20.0,145.4,145.35,45.12549]
[1723539250571,26.8779,145.4,145.35,52.00529]
[1723539250987,6.878,145.39,145.35,52.00529]
[1723539251164,19.618,145.39,145.35,45.12549]
[1723539251472,19.618,145.39,145.33,24.0821]
[1723539251473,12.74,145.37,145.33,17.2017]
[1723539251667,12.74,145.37,145.31,22.5302]
[1723539251861,19.6194,145.37,145.31,15.6484]
[1723539252566,19.6194,145.37,145.32,6.8809]
[1723539252757,12.74,145.37,145.33,6.8807]
[1723539252962,12.74,145.37,145.34,45.0]
[1723539253277,19.6181,145.39,145.34,51.8803]
[1723539253451,20.0,145.38,145.34,51.8803]
[1723539253879,20.0,145.38,145.35,6.8798]
[1723539254057,12.74,145.4,145.36,45.0]
[1723539254258,20.0,145.39,145.36,45.0]
[1723539254775,26.8781,145.39,145.36,45.0]
[1723539255270,12.74,145.38,145.28,17.2071]
[1723539255473,12.74,145.34,145.3,6.8819]
[1723539256051,6.8809,145.33,145.29,13.5116]
[1723539256253,12.74,145.33,145.29,13.5116]
[1723539256551,12.74,145.33,145.3,6.8822]
[1723539256962,12.74,145.33,145.29,6.8826]
[1723539257354,12.74,145.33,145.3,0.12549]
[1723539257561,12.74,145.33,145.3,0.25098]
[1723539258063,12.74,145.35,145.31,0.12549]
[1723539258258,12.74,145.35,145.32,6.8812]
[1723539258576,12.74,145.35,145.31,52.13268]
[1723539259373,12.74,145.35,145.32,6.8813]
[1723539259599,12.74,145.37,145.33,51.8806]
[1723539259884,20.0,145.36,145.33,51.8806]
[1723539260094,20.0,145.36,145.33,45.0]
[1723539260463,12.74,145.35,145.33,45.0]
[1723539260665,19.6199,145.35,145.33,45.0]
[1723539260969,19.6199,145.35,145.32,45.0]
[1723539261287,19.6199,145.35,145.31,0.25098]
[1723539261288,19.6199,145.35,145.31,45.25098]
[1723539261456,19.6199,145.35,145.31,45.12549]
[1723539261653,19.6199,145.35,145.31,52.00719]
[1723539261853,12.74,145.33,145.3,0.12549]
[1723539262473,12.74,145.33,145.27,21.9497]
[1723539263065,6.8815,145.32,145.27,21.9497]
[1723539263391,12.74,145.31,145.27,6.8833]
[1723539264090,20.0,145.36,145.28,6.8832]
[1723539264091,12.74,145.33,145.28,6.8832]
[1723539264390,19.621,145.33,145.28,6.8832]
[1723539265363,19.621,145.33,145.29,45.0]
[1723539266269,6.8814,145.32,145.29,45.0]
[1723539266485,6.8823,145.3,145.29,45.0]
[1723539266705,19.6219,145.31,145.27,0.12549]
[1723539266870,19.6219,145.31,145.27,45.12549]
[1723539267197,19.6219,145.31,145.27,52.00899]
[1723539268897,12.74,145.31,145.27,52.00899]
[1723539269497,12.74,145.33,145.28,17.2075]
[1723539269693,20.0,145.32,145.29,52.00809]
[1723539269869,20.0,145.32,145.29,45.12549]
[1723539270075,20.0,145.32,145.29,45.0]
[1723539272574,26.8814,145.32,145.29,45.0]
[1723539273692,20.0,145.32,145.29,45.0]
[1723539274008,19.621,145.33,145.29,45.0]
[1723539274009,12.74,145.34,145.31,6.8817]
[1723539274378,12.74,145.34,145.3,8.38384374]
[1723539274603,12.74,145.34,145.31,45.0]
[1723539275709,19.6205,145.34,145.31,45.0]
[1723539276219,19.6205,145.34,145.3,45.12549]
[1723539276998,12.74,145.34,145.3,52.00759]
[1723539277312,12.74,145.34,145.31,7.13248]
[1723539277507,19.6194,145.36,145.32,45.0]
[1723539277810,20.0,145.35,145.32,45.0]
[1723539278012,26.8801,145.35,145.32,45.0]
[1723539278310,26.8801,145.35,145.31,45.25098]
[1723539278810,6.8805,145.34,145.31,45.25098]
[1723539279108,19.6205,145.34,145.31,45.25098]
[1723539281401,19.6205,145.34,145.31,45.0]
[1723539281601,6.8809,145.33,145.31,45.0]
[1723539282111,6.8809,145.33,145.3,45.12549]
[1723539282407,19.6204,145.34,145.3,45.12549]
[1723539282707,12.74,145.34,145.3,52.00759]
[1723539283602,12.74,145.34,145.31,7.25827]
[1723539283784,19.6205,145.34,145.32,45.0]
[1723539284211,19.6205,145.34,145.31,45.37647]
[1723539284589,19.6205,145.34,145.31,45.0]
[1723539284787,6.8821,145.31,145.26,24.0939]
[1723539285007,12.74,145.3,145.26,24.0939]
[1723539285594,12.74,145.3,145.27,6.8836]
[1723539286602,12.74,145.3,145.28,45.0]
[1723539288416,12.74,145.31,145.28,45.0]
[1723539288599,12.74,145.33,145.29,6.8826]
[1723539289001,19.6209,145.33,145.29,6.8826]
[1723539289731,19.6209,145.33,145.28,6.8832]
[1723539290018,19.6209,145.33,145.29,45.0]
[1723539299427,12.74,145.33,145.3,6.8821]
[1723539299751,20.0,145.35,145.32,6.8813]
[1723539299913,20.0,145.35,145.32,8.25732205]
[1723539300228,6.8793,145.37,145.33,45.0]
[1723539300409,12.74,145.37,145.33,51.8808]
[1723539300614,12.74,145.37,145.34,1.37583771]
[1723539300915,12.74,145.37,145.33,51.8808]
[1723539301612,19.619,145.37,145.33,51.8808]
[1723539301812,12.74,145.37,145.34,0.25098]
[1723539302000,12.74,145.37,145.34,7.13128]
[1723539302201,12.74,145.37,145.35,45.0]
[1723539302827,36.195,145.39,145.35,45.0]
[1723539303026,6.4095,145.43,145.35,45.0]
[1723539303027,6.8776,145.4,145.36,1.37573386]
[1723539303330,19.6176,145.4,145.36,8.25513386]
[1723539303498,19.6176,145.4,145.37,45.0]
[1723539304203,6.8768,145.42,145.37,51.8789]
[1723539304404,6.8768,145.42,145.38,0.25098]
[1723539305598,19.6168,145.42,145.39,0.25098]
[1723539305805,6.8762,145.43,145.39,0.25098]
[1723539306005,19.6167,145.42,145.38,0.25098]
[1723539306205,6.8776,145.4,145.38,0.25098]
[1723539307131,12.74,145.42,145.38,0.25098]
[1723539307132,6.8771,145.41,145.38,0.25098]
[1723539309541,6.8771,145.41,145.37,45.0]
[1723539310222,19.6171,145.41,145.37,45.0]
[1723539310530,12.74,145.41,145.35,16.1003]
[1723539310713,12.74,145.41,145.34,23.6216]
[1723539310714,6.8785,145.38,145.34,17.2005]
[1723539311359,6.8785,145.38,145.34,24.0808]
[1723539311667,20.0,145.4,145.35,6.8798]
[1723539311668,26.878,145.4,145.35,6.8798]
[1723539311960,42.0455,145.53,145.37,0.12549]
[1723539311961,19.6168,145.42,145.37,0.12549]
[1723539312124,20.0,145.41,145.37,45.12549]
[1723539312816,20.0,145.41,145.37,52.00409]
[1723539313542,26.8771,145.41,145.37,45.12549]
[1723539314661,19.6176,145.4,145.37,45.0]
[1723539315239,19.6176,145.4,145.36,17.1978]
[1723539316444,19.6176,145.4,145.31,22.8279]
[1723539316445,12.74,145.38,145.31,22.8279]
[1723539316626,19.6185,145.38,145.33,6.8805]
[1723539316832,19.6185,145.38,145.32,24.0837]
[1723539316833,6.8793,145.37,145.32,24.0837]
[1723539317035,12.74,145.36,145.32,24.0837]
[1723539317230,6.8808,145.33,145.31,22.8279]
[1723539317449,12.74,145.36,145.31,16.4493]
[1723539317953,12.74,145.36,145.31,33.6533]
[1723539318154,19.6194,145.36,145.32,6.8811]
[1723539318330,19.6194,145.36,145.31,40.535]
[1723539318529,6.88,145.35,145.31,17.204]
[1723539318735,6.88,145.35,145.32,45.0]
[1723539319430,12.74,145.36,145.32,45.0]
[1723539319635,12.74,145.36,145.32,51.8809]
[1723539319834,12.74,145.36,145.32,45.0]
[1723539320142,12.74,145.38,145.35,6.8798]
[1723539320350,12.74,145.38,145.33,17.45228]
[1723539320351,20.0,145.37,145.36,45.0]
[1723539320856,20.0,145.37,145.35,45.0]
[1723539321055,35.1213,145.4,145.35,51.8798]
[1723539321234,26.8781,145.39,145.35,45.0]
[1723539324774,20.0,145.39,145.36,0.25098]
[1723539324962,20.0,145.39,145.36,1.62672011]
[1723539325262,19.617,145.42,145.36,8.50582011]
[1723539325454,6.8772,145.41,145.37,51.8789]
[1723539325628,20.0,145.4,145.38,1.37547978]
[1723539325828,6.8767,145.42,145.38,46.37547978]
[1723539326239,6.8767,145.42,145.39,0.50196]
[1723539327065,6.8772,145.41,145.39,0.12549]
[1723539327240,6.8772,145.41,145.38,45.0]
[1723539327439,6.8772,145.41,145.37,45.12549]
[1723539328172,19.6166,145.42,145.37,52.00429]
[1723539328675,19.6166,145.42,145.38,7.25487]
[1723539328848,19.6166,145.42,145.39,45.0]
[1723539329367,19.6166,145.42,145.37,52.00439]
[1723539329571,12.74,145.44,145.39,0.12549]
[1723539329868,12.74,145.44,145.39,7.00319]
[1723539330065,12.74,145.44,145.4,45.0]
[1723539330249,19.6157,145.44,145.4,45.0]
[1723539331167,12.74,145.44,145.4,51.8773]
[1723539331367,19.6158,145.44,145.4,45.0]
[1723539331676,6.8764,145.43,145.4,45.0]
[1723539332549,6.8766,145.42,145.4,45.0]
[1723539332751,19.6166,145.42,145.4,45.0]
[1723539332954,12.74,145.42,145.39,45.12549]
[1723539333870,12.74,145.42,145.39,52.00329]
[1723539335168,12.74,145.42,145.39,45.12549]
[1723539335484,19.6167,145.42,145.39,45.12549]
[1723539336160,12.74,145.42,145.39,45.12549]
[1723539336359,19.6169,145.42,145.39,45.0]
[1723539336677,19.6169,145.42,145.38,45.0]
[1723539338759,12.74,145.4,145.38,45.0]
[1723539338965,12.74,145.4,145.35,6.8798]
[1723539339284,12.74,145.37,145.34,6.88]
[1723539340586,12.74,145.35,145.29,23.7522]
[1723539340773,12.74,145.33,145.3,6.8819]
[1723539340976,12.74,145.33,145.31,6.8817]
[1723539341997,12.74,145.33,145.32,45.0]
[1723539342795,12.74,145.33,145.3,6.8821]
[1723539343177,12.74,145.33,145.31,6.8818]
[1723539343670,12.74,145.35,145.32,45.0]
[1723539344068,12.74,145.35,145.32,51.8813]
[1723539344266,12.74,145.37,145.34,6.8804]
[1723539344895,12.74,145.37,145.35,45.0]
[1723539345270,12.74,145.37,145.34,45.0]
[1723539345587,19.619,145.37,145.34,45.0]
[1723539346097,38.7486,145.38,145.34,45.0]
[1723539346265,20.0,145.37,145.34,45.0]
[1723539346461,26.8791,145.37,145.34,45.0]
[1723539346666,20.0,145.37,145.31,0.12549]
[1723539346882,38.7494,145.36,145.31,51.8818]
[1723539347081,26.879,145.37,145.32,0.12549]
[1723539347573,26.879,145.37,145.32,7.00669]
[1723539347774,26.879,145.37,145.33,45.0]
[1723539348279,6.8796,145.36,145.33,45.0]
[1723539348482,6.8799,145.35,145.32,45.0]
[1723539348892,6.8795,145.36,145.32,45.0]
[1723539349280,26.8791,145.37,145.32,45.0]
[1723539349497,26.8791,145.37,145.33,1.3752864]
[1723539349699,20.0,145.37,145.33,6.8807]
[1723539349900,20.0,145.37,145.34,51.8804]
[1723539350398,20.0,145.38,145.34,51.8804]
[1723539351177,31.87,145.4,145.35,1.58937185]
[1723539351503,21.6863,145.42,145.36,8.25480684]
[1723539351504,6.8772,145.41,145.36,8.25480684]
[1723539351996,6.8772,145.41,145.37,45.0]
[1723539352379,6.8772,145.41,145.37,51.8789]
[1723539352577,6.8772,145.41,145.38,1.37551438]
[1723539353094,6.8772,145.41,145.37,51.8789]
[1723539353395,6.8772,145.41,145.37,45.0]
[1723539354171,6.8772,145.41,145.37,51.8789]
[1723539354582,6.8772,145.41,145.37,45.0]
[1723539355397,6.8772,145.41,145.37,46.37557698]
[1723539356088,31.87,145.42,145.37,45.0]
[1723539356294,6.8781,145.39,145.36,45.0]
[1723539356497,6.8781,145.39,145.35,45.25098]
[1723539357381,6.8781,145.39,145.35,52.13078]
[1723539359702,38.7476,145.4,145.35,52.13078]
[1723539360387,38.7476,145.4,145.36,6.8792]
[1723539360581,31.87,145.4,145.37,45.0]
[1723539360991,31.87,145.4,145.37,51.8789]
[1723539361377,38.7467,145.42,145.37,51.8789]
[1723539361580,31.87,145.42,145.37,45.0]
[1723539361784,38.7458,145.44,145.39,6.8779]
[1723539361987,20.0,145.43,145.39,6.8779]
[1723539362705,26.8763,145.43,145.38,6.8784]
[1723539362918,6.8772,145.41,145.39,45.0]
[1723539363083,6.8772,145.41,145.37,45.0]
[1723539363281,22.38387606,145.46,145.41,0.12549]
[1723539363603,6.8752,145.45,145.41,7.00239]
[1723539363803,6.8752,145.45,145.42,45.0]
[1723539364384,6.8752,145.45,145.41,45.0]
[1723539364819,6.8752,145.45,145.41,51.877]
[1723539367215,38.7448,145.46,145.41,51.877]
[1723539367392,38.7448,145.46,145.42,1.37511404]
[1723539369012,47.9345,145.5,145.44,0.12549]
[1723539369217,31.87,145.5,145.44,1.50026583]
[1723539369588,31.87,145.5,145.46,6.8747]
[1723539369788,6.8724,145.51,145.47,46.62554992]
[1723539369999,6.873,145.5,145.47,45.0]
[1723539370300,6.8733,145.49,145.46,45.12549]
[1723539370719,6.8733,145.49,145.46,45.0]
[1723539371721,6.8729,145.5,145.46,46.37474884]
[1723539374624,34.63986152,145.54,145.47,0.12549]
[1723539374866,31.87,145.56,145.49,6.99859]
[1723539374994,6.8723,145.51,145.5,45.0]
[1723539375329,31.87,145.52,145.46,45.0]
[1723539376115,6.8732,145.5,145.46,45.0]
[1723539377800,6.8734,145.49,145.46,45.0]
[1723539378021,12.73,145.48,145.42,21.8989]
[1723539378327,19.6041,145.48,145.43,6.876]
[1723539378742,83.9373,145.53,145.42,21.8989]
[1723539378743,12.73,145.46,145.42,21.8989]
[1723539379209,19.6051,145.46,145.42,21.8989]
[1723539379413,19.6051,145.46,145.32,34.4058]
[1723539379414,12.73,145.44,145.32,34.4058]
[1723539379717,50.92,145.46,145.37,6.8789]
[1723539379718,12.73,145.4,145.37,6.8789]
[1723539380747,19.6067,145.42,145.37,6.8789]
[1723539381242,6.8771,145.41,145.36,6.8793]
[1723539381439,19.6066,145.42,145.38,0.12549]
[1723539381645,19.6066,145.42,145.38,45.12549]
[1723539382042,38.7266,145.42,145.38,45.12549]
[1723539382517,38.7266,145.42,145.38,52.00399]
[1723539383031,20.0,145.43,145.4,6.8774]
[1723539383329,26.8762,145.43,145.41,45.0]
[1723539383855,6.8766,145.42,145.41,45.0]
[1723539384153,38.7266,145.42,145.38,0.12549]
[1723539384354,31.85,145.42,145.38,52.25497]
[1723539384528,38.7266,145.42,145.38,45.37647]
[1723539385928,6.8771,145.41,145.38,45.37647]
[1723539386134,6.8771,145.41,145.38,45.12549]
[1723539386338,38.7267,145.42,145.38,45.12549]
[1723539390262,20.0,145.43,145.39,8.37883705]
[1723539390435,20.0,145.43,145.4,46.37528352]
[1723539390637,20.0,145.43,145.4,53.25278352]
[1723539390839,22.6303,145.47,145.41,1.62620818]
[1723539391039,38.7241,145.48,145.43,6.876]
[1723539391272,26.8743,145.47,145.44,46.37493288]
[1723539391943,6.8743,145.47,145.44,1.37493288]
[1723539392139,6.8752,145.45,145.43,45.0]
[1723539392737,6.8752,145.45,145.42,45.12549]
[1723539393562,6.8746,145.47,145.43,0.12549]
[1723539393751,20.0,145.46,145.43,1.75150615]
[1723539394248,20.0,145.46,145.43,0.37647]
[1723539396067,20.0,145.46,145.42,45.12549]
[1723539396367,6.8751,145.46,145.43,1.37503232]
[1723539396573,6.8751,145.46,145.43,0.12549]
[1723539396953,6.8752,145.45,145.42,45.12549]
[1723539397155,6.8752,145.45,145.42,0.25098]
[1723539399179,6.8748,145.46,145.42,0.25098]
[1723539399669,6.8748,145.46,145.42,7.12748]
[1723539399887,6.8748,145.46,145.43,45.0]
[1723539400857,6.8748,145.46,145.44,1.37497161]
[1723539401269,6.8748,145.46,145.43,45.0]
[1723539401467,6.8748,145.46,145.42,45.25098]
[1723539402053,6.8753,145.45,145.42,45.25098]
[1723539402551,6.8753,145.45,145.42,0.25098]
[1723539402753,6.8753,145.45,145.42,1.62601794]
[1723539403367,6.8753,145.45,145.42,0.25098]
[1723539403674,6.8757,145.44,145.42,0.25098]
[1723539404171,6.8761,145.43,145.42,0.12549]
[1723539404376,19.6061,145.43,145.42,0.12549]
[1723539404871,6.8766,145.42,145.38,6.8781]
[1723539405249,12.73,145.41,145.36,22.021]
[1723539405457,12.73,145.41,145.36,28.9004]
[1723539405966,6.8771,145.41,145.36,28.9004]
[1723539406352,38.7167,145.42,145.37,6.8787]
[1723539406552,6.8772,145.41,145.38,0.12549]
[1723539406876,38.7167,145.42,145.39,0.12549]
[1723539407385,38.7167,145.42,145.39,1.50083372]
[1723539407880,31.84,145.44,145.4,0.25098]
[1723539408169,26.8761,145.43,145.4,45.25098]
[1723539408887,20.0,145.43,145.4,45.25098]
[1723539410191,26.8762,145.43,145.4,45.25098]
[1723539412475,6.8771,145.41,145.37,45.0]
[1723539413706,6.8771,145.41,145.38,0.12549]
[1723539413878,6.8771,145.41,145.38,0.50196]
[1723539414576,38.7167,145.42,145.38,0.50196]
[1723539415203,38.7167,145.42,145.38,7.38036]
[1723539415503,38.7167,145.42,145.39,45.0]
[1723539415876,20.0,145.43,145.4,1.75181926]
[1723539416089,26.8756,145.44,145.4,1.75181926]
[1723539416295,26.8756,145.44,145.4,0.37647]
[1723539416672,26.8756,145.44,145.4,1.7516313]
[1723539416998,26.8756,145.44,145.41,0.12549]
[1723539417373,6.8763,145.43,145.41,0.12549]
[1723539418508,6.8763,145.43,145.41,1.50067454]
[1723539418899,6.8763,145.43,145.41,0.12549]
[1723539419086,20.0,145.44,145.41,0.12549]
[1723539420187,6.8762,145.43,145.41,0.12549]
[1723539420804,6.8762,145.43,145.41,1.37517155]
[1723539421575,6.8762,145.43,145.4,0.37647]
[1723539422400,20.0,145.44,145.4,0.37647]
[1723539422581,20.0,145.44,145.4,0.12549]
[1723539422932,20.0,145.44,145.4,0.50196]
[1723539423580,6.8765,145.43,145.4,0.50196]
[1723539423999,6.8767,145.42,145.4,0.50196]
[1723539424711,20.0,145.44,145.4,0.50196]
[1723539424712,6.8771,145.41,145.4,0.50196]
[1723539424890,6.8771,145.41,145.4,0.25098]
[1723539425073,6.8771,145.41,145.39,45.0]
[1723539425279,6.8771,145.41,145.38,45.37647]
[1723539425480,6.8767,145.42,145.39,0.12549]
[1723539425780,6.8767,145.42,145.4,0.12549]
[1723539430728,6.8762,145.43,145.4,1.50074471]
[1723539431007,6.8762,145.43,145.4,46.50074471]
[1723539431913,6.8752,145.45,145.42,0.12549]
[1723539432088,6.8752,145.45,145.42,46.5004787]
[1723539433109,6.8752,145.45,145.42,1.5004787]
[1723539433407,6.8752,145.45,145.43,0.37647]
[1723539433813,19.6048,145.46,145.44,0.12549]
[1723539433981,12.73,145.46,145.44,1.50035302]
[1723539434184,19.6047,145.46,145.44,0.12549]
[1723539434384,6.8752,145.45,145.44,0.12549]
[1723539435616,6.8746,145.47,145.44,0.12549]
[1723539437010,6.8746,145.47,145.44,1.5002869]
[1723539437212,6.8746,145.47,145.45,0.37647]
[1723539438904,68.0992,145.53,145.46,0.12549]
[1723539439212,6.8736,145.49,145.46,1.50013777]
[1723539439417,20.0,145.48,145.46,0.12549]
[1723539440091,20.0,145.49,145.46,0.73029448]
[1723539440291,12.73,145.48,145.44,1.37466655]
[1723539440485,6.8746,145.47,145.42,6.8762]
[1723539440794,6.8746,145.47,145.43,1.37478041]
[1723539441316,6.8747,145.46,145.42,6.8762]
[1723539441825,6.8747,145.46,145.43,45.50196]
[1723539441990,6.8743,145.47,145.43,45.50196]
[1723539442610,6.8743,145.47,145.45,0.12549]
[1723539442813,12.73,145.48,145.45,0.50196]
[1723539442814,19.6038,145.48,145.45,0.50196]
[1723539443001,19.6038,145.48,145.45,1.87671321]
[1723539444092,19.6038,145.48,145.45,0.50196]
[1723539444311,19.6038,145.48,145.45,1.87670419]
[1723539445617,19.6038,145.48,145.45,0.50196]
[1723539445787,6.8743,145.47,145.45,0.50196]
[1723539449138,6.8747,145.46,145.45,0.50196]
[1723539449322,6.8747,145.46,145.44,0.12549]
[1723539449633,6.8752,145.45,145.44,0.25098]
[1723539449842,12.73,145.46,145.41,21.7204]
[1723539450026,6.8764,145.43,145.41,15.344]
[1723539450222,12.73,145.42,145.37,22.489]
[1723539450637,6.8781,145.39,145.34,6.8801]
[1723539450939,6.8766,145.42,145.38,6.8784]
[1723539451119,19.6062,145.43,145.38,6.8784]
[1723539451321,19.6062,145.43,145.34,12.73]
[1723539451322,12.73,145.43,145.37,24.0755]
[1723539451522,12.73,145.41,145.37,17.1966]
[1723539451729,19.6074,145.41,145.37,17.1966]
[1723539451927,19.6074,145.41,145.38,0.25098]
[1723539452110,12.73,145.41,145.38,8.5047994]
[1723539452313,12.73,145.41,145.38,7.12938]
[1723539452519,6.8767,145.42,145.38,7.12938]
[1723539452739,19.6067,145.42,145.39,45.37647]
[1723539452929,19.6067,145.42,145.39,0.37647]
[1723539453245,6.8772,145.41,145.38,45.12549]
[1723539454544,19.6067,145.42,145.39,1.37543882]
[1723539455048,19.6067,145.42,145.38,45.12549]
[1723539455525,12.73,145.42,145.39,1.37541393]
[1723539455729,12.73,145.44,145.4,1.50079759]
[1723539456039,20.0,145.43,145.4,1.50079759]
[1723539456222,20.0,145.43,145.4,46.50079759]
[1723539457246,20.0,145.43,145.4,53.37829759]
[1723539457442,12.73,145.44,145.41,0.25098]
[1723539457747,12.73,145.44,145.41,1.62612736]
[1723539457958,19.6058,145.44,145.41,1.62612736]
[1723539458244,19.6058,145.44,145.41,0.25098]
[1723539459439,12.73,145.44,145.4,45.12549]
[1723539459648,6.8768,145.42,145.4,45.12549]
[1723539460727,19.6061,145.44,145.41,1.37528565]
[1723539461547,6.8761,145.43,145.41,1.37528565]
[1723539462115,12.73,145.44,145.41,1.37528565]
[1723539462116,19.6057,145.44,145.41,1.37528565]
[1723539462650,6.8762,145.43,145.41,1.37528565]
[1723539468154,6.8762,145.43,145.4,45.12549]